bitfinex-derivatives/quotes_BTCF0:USTF0_20251023
["timestamp","ask_amount","ask_price","bid_price","bid_amount"]
[1761231482259,0.1353724,109610.0,109600.0,0.1141327]
[1761231482455,0.45017476,109610.0,109600.0,0.4377727]
[1761231482651,0.35896236,109610.0,109600.0,0.7736227]
[1761231482853,0.03752989,109630.0,109620.0,0.1499715]
[1761231482854,0.36376236,109630.0,109620.0,0.1499715]
[1761231483162,0.0048,109630.0,109620.0,0.4736115]
[1761231483459,0.36376236,109630.0,109620.0,0.4736115]
[1761231484265,0.36376236,109630.0,109620.0,0.5736115]
[1761231484455,0.36476236,109630.0,109620.0,0.5736115]
[1761231484655,0.36476236,109630.0,109620.0,0.5836115]
[1761231484850,0.45595556,109630.0,109620.0,0.05877]
[1761231485062,0.8771577,109630.0,109620.0,0.32364]
[1761231485260,0.8771577,109630.0,109620.0,0.4148415]
[1761231485456,0.8771577,109630.0,109620.0,0.32364]
[1761231485761,0.1466516,109620.0,109610.0,0.1369099]
[1761231485951,0.46145396,109620.0,109610.0,0.4605499]
[1761231486148,0.4826561,109620.0,109610.0,0.1369099]
[1761231486363,0.4826561,109620.0,109610.0,0.4605499]
[1761231486961,0.4826561,109620.0,109610.0,0.4625499]
[1761231487859,0.3914545,109620.0,109610.0,0.4625499]
[1761231488060,0.37025236,109620.0,109610.0,0.1389099]
[1761231488260,0.46145396,109620.0,109610.0,0.4625499]
[1761231488462,0.4826561,109620.0,109610.0,0.4625499]
[1761231488967,0.4713661,109620.0,109610.0,0.4625499]
[1761231489268,0.3811645,109620.0,109610.0,0.6315499]
[1761231489561,0.35996236,109620.0,109610.0,0.6305499]
[1761231490061,0.35996236,109620.0,109610.0,0.5705499]
[1761231490761,0.45116396,109620.0,109610.0,0.6605499]
[1761231491066,0.4723661,109620.0,109610.0,0.6605499]
[1761231492051,0.4723661,109620.0,109610.0,0.4605499]
[1761231492255,0.51638599,109620.0,109610.0,0.4605499]
[1761231492754,0.51638599,109620.0,109610.0,0.1369099]
[1761231492955,0.51638599,109620.0,109610.0,0.4605499]
[1761231493154,0.91638599,109620.0,109610.0,0.0912099]
[1761231493351,0.91638599,109620.0,109610.0,0.4148499]
[1761231493559,0.91638599,109620.0,109610.0,0.4605499]
[1761231494156,0.96546713,109620.0,109610.0,0.4605499]
[1761231494655,0.42668652,109620.0,109610.0,0.4605499]
[1761231494855,0.40548438,109620.0,109610.0,0.4605499]
[1761231495055,0.41677438,109620.0,109610.0,0.4605499]
[1761231495455,0.40548438,109620.0,109610.0,0.4605499]
[1761231495655,0.41677438,109620.0,109610.0,0.4605499]
[1761231496763,0.41677438,109620.0,109610.0,0.1369099]
[1761231496966,0.40548438,109620.0,109610.0,0.4605499]
[1761231497161,0.41677438,109620.0,109610.0,0.4605499]
[1761231497355,0.40548438,109620.0,109610.0,0.4605499]
[1761231497757,0.40548438,109620.0,109610.0,0.1369099]
[1761231498155,0.40548438,109620.0,109610.0,0.4605499]
[1761231499060,0.76769324,109620.0,109610.0,0.4148499]
[1761231499255,0.78889538,109620.0,109610.0,0.4736199]
[1761231499562,0.28640378,109620.0,109610.0,0.7536199]
[1761231499757,0.21080175,109620.0,109610.0,0.7536199]
[1761231499957,0.18831175,109620.0,109610.0,0.7536199]
[1761231500757,0.21080175,109620.0,109610.0,0.7536199]
[1761231501263,0.001,109620.0,109610.0,0.7536199]
[1761231501563,0.18831175,109620.0,109610.0,0.7536199]
[1761231501956,0.23247175,109620.0,109610.0,0.7536199]
[1761231503157,0.23247175,109620.0,109610.0,0.5236199]
[1761231503358,0.32367335,109620.0,109610.0,0.05877]
[1761231503660,0.35640324,109620.0,109610.0,0.38237]
[1761231503862,0.35640324,109620.0,109610.0,0.5235799]
[1761231504450,0.35640324,109620.0,109610.0,0.43237]
[1761231504655,0.35640324,109620.0,109610.0,0.5235799]
[1761231505158,0.32367335,109620.0,109610.0,0.5235799]
[1761231506164,0.32367335,109620.0,109610.0,0.38237]
[1761231506358,0.3482651,109620.0,109610.0,0.38237]
[1761231506557,0.3482651,109620.0,109610.0,0.4735799]
[1761231508969,0.1466799,109610.0,109600.0,0.1360041]
[1761231509269,0.32270165,109610.0,109600.0,0.5829341]
[1761231510161,0.23149175,109610.0,109600.0,0.7729341]
[1761231510557,0.23249175,109610.0,109600.0,0.7729341]
[1761231510866,0.23249175,109610.0,109600.0,0.7929341]
[1761231511065,0.23249175,109610.0,109600.0,0.7629341]
[1761231511761,0.18831175,109610.0,109600.0,0.7629341]
[1761231516967,0.001,109610.0,109600.0,0.81189632]
[1761231517268,0.18731175,109620.0,109600.0,0.81189632]
[1761231517269,0.2239535,109630.0,109620.0,0.1493216]
[1761231517472,0.19936175,109630.0,109620.0,0.8129216]
[1761231518872,0.19936175,109630.0,109620.0,0.5729216]
[1761231519170,0.24354175,109630.0,109620.0,0.5729216]
[1761231519572,0.24454175,109630.0,109620.0,0.5729216]
[1761231520469,0.24454175,109630.0,109620.0,0.4729216]
[1761231520773,0.20036175,109630.0,109620.0,0.7529216]
[1761231521476,0.01305,109630.0,109620.0,0.7529216]
[1761231522571,0.01305,109630.0,109620.0,1.20188382]
[1761231524072,0.0058,109630.0,109620.0,1.20188382]
[1761231525073,0.0058,109630.0,109620.0,0.80184382]
[1761231525274,0.19311175,109630.0,109620.0,0.80184382]
[1761231525774,0.0058,109630.0,109620.0,0.47828382]
[1761231525974,0.0058,109630.0,109620.0,1.20184382]
[1761231526175,0.01295,109630.0,109620.0,1.20184382]
[1761231528882,0.01195,109630.0,109620.0,1.20184382]
[1761231529172,0.01295,109630.0,109620.0,1.20184382]
[1761231532683,0.01295,109630.0,109620.0,1.35024382]
[1761231535472,0.20026175,109630.0,109620.0,0.9012816]
[1761231536287,0.20026175,109630.0,109620.0,0.9012016]
[1761231536783,0.35736234,109630.0,109620.0,0.5777216]
[1761231537081,0.18530617,109630.0,109620.0,0.7528016]
[1761231537382,0.16273617,109630.0,109620.0,0.7528016]
[1761231539075,0.20757617,109630.0,109620.0,0.7528016]
[1761231539278,0.18530617,109630.0,109620.0,0.7528016]
[1761231540083,0.16273617,109630.0,109620.0,0.7528016]
[1761231540989,0.35736234,109630.0,109620.0,0.7528016]
[1761231541584,0.20757617,109630.0,109620.0,0.7528016]
[1761231542089,0.20757617,109630.0,109620.0,0.4293216]
[1761231542290,0.20757617,109630.0,109620.0,0.7528016]
[1761231542685,0.20757617,109630.0,109620.0,0.4293216]
[1761231542991,0.20757617,109630.0,109620.0,0.7528016]
[1761231543683,0.05779,109630.0,109620.0,0.7528016]
[1761231543885,0.20757617,109630.0,109620.0,0.7528016]
[1761231546086,0.20757617,109630.0,109620.0,0.33812]
[1761231546087,0.29876887,109630.0,109620.0,0.33812]
[1761231546287,0.35736234,109630.0,109620.0,0.752761]
[1761231550393,0.05779,109630.0,109620.0,0.752761]
[1761231550599,0.35736234,109630.0,109620.0,0.752761]
[1761231552185,0.20757617,109630.0,109620.0,0.752761]
[1761231552392,0.16273617,109630.0,109620.0,0.80172322]
[1761231552785,0.18530617,109630.0,109620.0,0.80172322]
[1761231552989,0.20757617,109630.0,109620.0,0.80172322]
[1761231553893,0.20757617,109630.0,109620.0,0.47828322]
[1761231554094,0.20757617,109630.0,109620.0,0.33812]
[1761231554095,0.35736234,109630.0,109620.0,0.33812]
[1761231554401,0.35736234,109630.0,109620.0,0.582761]
[1761231554798,0.4786286,109630.0,109620.0,0.562761]
[1761231554998,0.49988285,109630.0,109620.0,0.562761]
[1761231555501,0.40869015,109630.0,109620.0,0.562761]
[1761231555702,0.3874359,109630.0,109620.0,0.562761]
[1761231555904,0.3874359,109630.0,109620.0,0.239321]
[1761231556202,0.22261295,109630.0,109620.0,0.562761]
[1761231556404,0.31380565,109630.0,109620.0,0.239321]
[1761231556603,0.32216565,109630.0,109620.0,0.562761]
[1761231556801,0.31380565,109630.0,109620.0,0.562761]
[1761231557001,0.4786286,109630.0,109620.0,0.562761]
[1761231557302,0.3350599,109630.0,109620.0,0.562761]
[1761231557601,0.31380565,109630.0,109620.0,0.562761]
[1761231558395,0.31380565,109630.0,109620.0,0.239321]
[1761231558595,0.4786286,109630.0,109620.0,0.562761]
[1761231558901,0.49988285,109630.0,109620.0,0.562761]
[1761231559101,0.3350599,109630.0,109620.0,0.562761]
[1761231559296,0.31380565,109630.0,109620.0,0.562761]
[1761231559499,0.22261295,109630.0,109620.0,0.562761]
[1761231559903,0.22261295,109630.0,109620.0,0.812761]
[1761231561302,0.22261295,109630.0,109620.0,0.582761]
[1761231561897,0.31380595,109630.0,109620.0,0.16812]
[1761231562100,0.4869889,109630.0,109620.0,0.5827213]
[1761231562401,0.50824315,109630.0,109620.0,0.5727213]
[1761231562605,0.49988315,109630.0,109620.0,0.5727213]
[1761231563607,0.49990809,109630.0,109620.0,0.5727213]
[1761231566208,0.41707509,109630.0,109620.0,0.5736013]
[1761231566405,0.4786289,109630.0,109620.0,0.2502013]
[1761231566703,0.49990809,109630.0,109620.0,0.2502013]
[1761231567004,0.49990809,109630.0,109620.0,0.5736013]
[1761231567401,0.49990809,109630.0,109620.0,0.2502013]
[1761231567604,0.49990809,109630.0,109620.0,0.5736013]
[1761231568706,0.40871509,109630.0,109620.0,0.5736013]
[1761231569010,0.3874359,109630.0,109620.0,0.5736013]
[1761231569510,0.4786283,109630.0,109620.0,0.5736013]
[1761231569711,0.40871509,109630.0,109620.0,0.5736013]
[1761231569904,0.3874359,109630.0,109620.0,0.5736013]
[1761231570505,0.4786283,109630.0,109620.0,0.5736013]
[1761231570705,0.49990749,109630.0,109620.0,0.5736013]
[1761231570907,0.49990749,109630.0,109620.0,0.2502013]
[1761231571115,0.49990749,109630.0,109620.0,0.5736013]
[1761231572111,0.40871509,109630.0,109620.0,0.5736013]
[1761231572299,0.22261295,109630.0,109620.0,0.7636013]
[1761231572813,0.31380615,109630.0,109620.0,0.7636013]
[1761231573011,0.22261295,109630.0,109620.0,0.8136013]
[1761231573201,0.31380625,109630.0,109620.0,0.5099213]
[1761231573409,0.31280625,109630.0,109620.0,0.5109213]
[1761231573811,0.31280625,109630.0,109620.0,0.5246713]
[1761231574206,0.22161295,109630.0,109620.0,0.7736713]
[1761231574412,0.22261295,109630.0,109620.0,0.7736713]
[1761231575612,0.22261295,109630.0,109620.0,0.4502713]
[1761231575914,0.22261295,109630.0,109620.0,0.7736313]
[1761231579515,0.22161295,109630.0,109620.0,0.7746313]
[1761231581619,0.05679,109630.0,109620.0,0.7746313]
[1761231581914,0.17677295,109630.0,109620.0,0.7756313]
[1761231582521,0.01195,109630.0,109620.0,0.82359352]
[1761231583221,0.17677295,109630.0,109620.0,0.82459352]
[1761231584418,0.17677295,109630.0,109620.0,0.7756313]
[1761231586516,0.17677295,109630.0,109620.0,0.82459352]
[1761231588617,0.22031295,109630.0,109620.0,0.50123352]
[1761231588814,0.22031295,109630.0,109620.0,0.82455352]
[1761231589220,0.22031295,109630.0,109620.0,0.50123352]
[1761231589427,0.22031295,109630.0,109620.0,0.82455352]
[1761231589813,0.3851359,109630.0,109620.0,0.4522713]
[1761231590014,0.3851359,109630.0,109620.0,0.7755513]
[1761231590321,0.3851359,109630.0,109620.0,0.2512713]
[1761231590622,0.01195,109630.0,109620.0,1.25451352]
[1761231591424,0.01195,109630.0,109620.0,1.25351352]
[1761231592017,0.01295,109630.0,109620.0,1.25351352]
[1761231592723,0.01195,109630.0,109620.0,1.25351352]
[1761231592926,0.01195,109630.0,109620.0,1.25451352]
[1761231600223,0.01195,109630.0,109620.0,1.56773647]
[1761231600421,0.24527904,109670.0,109660.0,0.1474976]
[1761231600623,0.19237295,109670.0,109660.0,0.7607376]
[1761231600830,0.16962295,109670.0,109660.0,0.7607376]
[1761231601132,0.21541295,109670.0,109660.0,0.7707375]
[1761231601629,0.21741295,109670.0,109660.0,0.7707375]
[1761231601928,0.71986215,109670.0,109660.0,0.04295]
[1761231602135,0.74114134,109670.0,109660.0,0.04295]
[1761231603532,0.74114134,109670.0,109660.0,0.1341176]
[1761231603724,0.74114134,109670.0,109660.0,0.16323016]
[1761231604125,0.74114134,109670.0,109660.0,0.1541176]
[1761231604322,0.74114134,109670.0,109660.0,0.1341176]
[1761231604523,0.64998214,109670.0,109660.0,0.1341176]
[1761231604722,0.64998214,109670.0,109660.0,0.1674976]
[1761231604723,0.63869214,109670.0,109660.0,0.1674976]
[1761231605243,0.63869214,109670.0,109660.0,0.17660528]
[1761231605536,0.63869214,109670.0,109660.0,0.27660528]
[1761231605832,0.63869214,109670.0,109660.0,0.26660528]
[1761231606022,0.63869214,109670.0,109660.0,0.44660528]
[1761231606219,0.63869214,109670.0,109660.0,0.27660528]
[1761231606631,0.63869214,109670.0,109660.0,0.46660528]
[1761231606931,0.63869214,109670.0,109660.0,0.25660528]
[1761231607128,0.72985144,109670.0,109660.0,0.25660528]
[1761231607330,0.72985144,109670.0,109660.0,0.20660528]
[1761231607533,0.72985144,109670.0,109660.0,0.31660528]
[1761231607835,0.72985144,109670.0,109660.0,0.3074976]
[1761231608334,0.72985144,109670.0,109660.0,0.3164163]
[1761231608529,0.72985144,109670.0,109660.0,0.1874976]
[1761231608729,0.63869214,109670.0,109660.0,0.4674976]
[1761231608930,0.63869214,109670.0,109660.0,0.4274976]
[1761231609132,0.21565214,109670.0,109660.0,0.4274976]
[1761231609333,0.17162295,109670.0,109660.0,0.4274976]
[1761231609533,0.0068,109670.0,109660.0,0.91548055]
[1761231610031,0.0054591,109670.0,109660.0,0.91548055]
[1761231610235,0.0054591,109670.0,109660.0,1.1506576]
[1761231610532,0.0054591,109670.0,109660.0,1.15975901]
[1761231611134,0.0074591,109670.0,109660.0,1.15975901]
[1761231611331,0.31469459,109710.0,109660.0,0.75975901]
[1761231611524,0.33926894,109710.0,109700.0,0.05633]
[1761231611727,0.484762,109710.0,109700.0,0.05633]
[1761231611934,0.50597765,109710.0,109700.0,0.04295]
[1761231612837,0.50597765,109710.0,109700.0,0.14324387]
[1761231613633,0.50897765,109710.0,109700.0,0.14324387]
[1761231614233,0.50897765,109710.0,109700.0,0.14424387]
[1761231614740,0.50849623,109710.0,109700.0,0.14424387]
[1761231614931,0.50849623,109710.0,109700.0,0.15762387]
[1761231615634,0.50849613,109710.0,109700.0,0.20762387]
[1761231615828,0.50849613,109710.0,109700.0,0.15762387]
[1761231616742,0.17238224,109710.0,109700.0,0.77070387]
[1761231616947,0.19513224,109710.0,109700.0,0.77070387]
[1761231617243,0.21817224,109710.0,109700.0,0.77070387]
[1761231617434,0.19513224,109710.0,109700.0,0.77070387]
[1761231617634,0.17238224,109710.0,109700.0,0.76970387]
[1761231617938,0.21617224,109710.0,109700.0,0.76970387]
[1761231618530,0.38075448,109710.0,109700.0,0.21548947]
[1761231618731,0.04579,109690.0,109680.0,0.54527555]
[1761231618932,0.37495448,109690.0,109680.0,0.8105571]
[1761231619539,0.37495448,109690.0,109680.0,0.8193473]
[1761231619737,0.16458224,109690.0,109680.0,0.4793473]
[1761231619943,0.18733224,109690.0,109680.0,0.8213473]
[1761231620134,0.21037224,109690.0,109680.0,0.8223473]
[1761231620335,0.16458224,109690.0,109680.0,0.8223473]
[1761231621134,0.21037224,109690.0,109680.0,0.8223473]
[1761231621435,0.16458224,109690.0,109680.0,0.8223473]
[1761231622334,0.18733224,109690.0,109680.0,0.8223473]
[1761231622635,0.16458224,109690.0,109680.0,0.8223473]
[1761231622842,0.20837224,109690.0,109680.0,0.7923473]
[1761231627339,0.37295448,109690.0,109680.0,0.5923514]
[1761231627539,0.37295448,109690.0,109680.0,0.5723514]
[1761231628946,0.37295448,109690.0,109680.0,0.7723514]
[1761231629142,0.38635448,109690.0,109680.0,0.2092714]
[1761231629741,0.37295448,109690.0,109680.0,0.2092714]
[1761231631050,0.37295448,109690.0,109680.0,0.4992714]
[1761231631251,0.37295448,109690.0,109680.0,0.2692714]
[1761231631443,0.37295448,109690.0,109680.0,0.4592714]
[1761231631952,0.46409738,109690.0,109680.0,0.1592714]
[1761231632144,0.46409738,109690.0,109680.0,0.2092714]
[1761231632346,0.46409738,109690.0,109680.0,0.1592714]
[1761231633753,0.37295448,109690.0,109680.0,0.2092714]
[1761231634054,0.37295448,109690.0,109680.0,0.1992714]
[1761231634353,0.37295448,109690.0,109680.0,0.4492714]
[1761231634554,0.37295448,109690.0,109680.0,0.2092714]
[1761231634954,0.46409738,109690.0,109680.0,0.1992714]
[1761231635153,0.48529939,109690.0,109680.0,0.2092714]
[1761231635365,0.48529939,109690.0,109680.0,0.2592714]
[1761231635562,0.48529939,109690.0,109680.0,0.2582714]
[1761231635863,0.66328163,109690.0,109680.0,0.0537402]
[1761231636162,1.38628163,109690.0,109680.0,0.002]
[1761231636567,1.41901152,109690.0,109680.0,0.002]
[1761231637068,1.25542928,109690.0,109680.0,0.001]
[1761231637262,1.25542928,109690.0,109680.0,0.0921512]
[1761231637463,1.25542928,109690.0,109680.0,0.0911512]
[1761231637662,0.1356012,109680.0,109670.0,0.1507934]
[1761231637859,0.46476568,109680.0,109670.0,0.20986932]
[1761231638059,0.48596769,109680.0,109670.0,0.20986932]
[1761231638268,0.48596769,109680.0,109670.0,0.44986932]
[1761231639064,0.48596769,109680.0,109670.0,0.46986932]
[1761231639566,0.48696769,109680.0,109670.0,0.46986932]
[1761231639769,0.39581649,109680.0,109670.0,0.46986932]
[1761231639970,0.04545,109680.0,109670.0,0.46986932]
[1761231640162,0.37461448,109680.0,109670.0,0.46986932]
[1761231641269,0.46576568,109680.0,109670.0,0.46986932]
[1761231641570,0.48696769,109680.0,109670.0,0.46986932]
[1761231642670,0.39581649,109680.0,109670.0,0.46986932]
[1761231642871,0.37461448,109680.0,109670.0,0.46986932]
[1761231644475,0.001,109680.0,109670.0,0.46986932]
[1761231644673,0.16558224,109680.0,109670.0,0.46986932]
[1761231645071,0.33016448,109680.0,109670.0,0.46986932]
[1761231645366,0.35299448,109680.0,109670.0,0.46986932]
[1761231645959,0.16558224,109680.0,109670.0,0.46986932]
[1761231646874,0.16558224,109680.0,109670.0,0.63445156]
[1761231647174,0.16558224,109680.0,109670.0,0.46986932]
[1761231647376,0.001,109680.0,109670.0,0.46986932]
[1761231647673,0.16558224,109680.0,109670.0,0.46986932]
[1761231647873,0.33016448,109680.0,109670.0,0.46986932]
[1761231648061,0.37461448,109680.0,109670.0,0.46986932]
[1761231648476,0.46576578,109680.0,109670.0,0.24986932]
[1761231648667,0.37461448,109680.0,109670.0,0.15986932]
[1761231648866,0.37461448,109680.0,109670.0,0.46986932]
[1761231649266,0.37361448,109680.0,109670.0,0.46986932]
[1761231649466,0.37361448,109680.0,109670.0,0.47086932]
[1761231649675,0.04445,109680.0,109670.0,0.47186932]
[1761231649877,0.37361448,109680.0,109670.0,0.47186932]
[1761231650378,0.37361448,109680.0,109670.0,0.31186932]
[1761231650566,0.37361448,109680.0,109670.0,0.50186932]
[1761231652876,0.16458224,109680.0,109670.0,0.50186932]
[1761231653079,0.32916448,109680.0,109670.0,0.50186932]
[1761231653375,0.16458224,109680.0,109670.0,0.50186932]
[1761231653777,0.32916448,109680.0,109670.0,0.50186932]
[1761231653971,0.16458224,109680.0,109670.0,0.50186932]
[1761231655181,0.47842422,109700.0,109690.0,0.05675]
[1761231655378,0.8075887,109700.0,109690.0,0.05675]
[1761231655583,0.4846287,109700.0,109690.0,0.147893]
[1761231655778,0.8075887,109700.0,109690.0,0.417893]
[1761231656077,0.8075887,109700.0,109690.0,0.05675]
[1761231656277,0.4846287,109700.0,109690.0,0.147893]
[1761231656477,0.8075887,109700.0,109690.0,0.147893]
[1761231657267,0.8085887,109700.0,109690.0,0.147893]
[1761231657468,0.717449,109700.0,109690.0,0.247893]
[1761231657667,0.717449,109700.0,109690.0,0.477893]
[1761231657871,0.394489,109700.0,109690.0,0.477893]
[1761231658179,0.37324448,109700.0,109690.0,0.477893]
[1761231658379,0.35129448,109700.0,109690.0,0.477893]
[1761231658579,0.37324448,109700.0,109690.0,0.477893]
[1761231659579,0.02213,109700.0,109690.0,0.477893]
[1761231659767,0.37324448,109700.0,109690.0,0.477893]
[1761231659969,0.37324448,109700.0,109690.0,0.478893]
[1761231660173,0.37224448,109700.0,109690.0,0.479893]
[1761231660570,0.18571224,109700.0,109690.0,0.479893]
[1761231661778,0.47657918,109700.0,109690.0,0.04526]
[1761231662075,0.89419124,109700.0,109690.0,0.04526]
[1761231662271,0.8207437,109700.0,109690.0,0.149893]
[1761231662471,0.8207437,109700.0,109690.0,0.148893]
[1761231662680,0.8207437,109700.0,109690.0,0.149893]
[1761231663073,0.8075437,109700.0,109690.0,0.150893]
[1761231663277,0.8075437,109700.0,109690.0,0.149893]
[1761231663671,0.8207437,109700.0,109690.0,0.136403]
[1761231663870,0.8217437,109700.0,109690.0,0.134403]
[1761231664478,0.98632594,109700.0,109690.0,0.04326]
[1761231665285,0.05173,109680.0,109670.0,0.14348952]
[1761231665475,0.05173,109680.0,109670.0,0.18348952]
[1761231665476,0.38089448,109680.0,109670.0,0.18348952]
[1761231665678,0.38089448,109680.0,109670.0,0.14348952]
[1761231665878,0.70381448,109680.0,109670.0,0.14348952]
[1761231666080,0.95954802,109680.0,109670.0,0.10022952]
[1761231666280,0.95954802,109680.0,109670.0,0.00907592]
[1761231666576,0.98076628,109680.0,109670.0,0.008]
[1761231666776,0.98076628,109680.0,109670.0,0.0991596]
[1761231667180,0.98076628,109680.0,109670.0,0.10816352]
[1761231667382,0.98076628,109680.0,109670.0,0.12715352]
[1761231667680,0.71638274,109680.0,109670.0,0.21291352]
[1761231667881,0.06429826,109680.0,109670.0,0.50291352]
[1761231668087,0.37224448,109680.0,109670.0,0.50291352]
[1761231668276,0.37224448,109680.0,109670.0,0.49891352]
[1761231670477,0.38089448,109680.0,109670.0,0.48891352]
[1761231670676,0.04308,109680.0,109670.0,0.48891352]
[1761231670887,0.37224448,109680.0,109670.0,0.48891352]
[1761231675088,0.20766224,109680.0,109670.0,0.48891352]
[1761231675287,0.37224448,109680.0,109670.0,0.48891352]
[1761231675786,0.20766224,109680.0,109670.0,0.48891352]
[1761231675983,0.49495745,109700.0,109680.0,0.0911432]
[1761231676287,0.20766224,109690.0,109680.0,0.4778932]
[1761231676682,0.20768657,109690.0,109680.0,0.4778932]
[1761231676888,0.29882897,109690.0,109680.0,0.1978932]
[1761231677085,0.29882897,109690.0,109680.0,0.1478932]
[1761231677392,0.29882897,109690.0,109680.0,0.4679009]
[1761231677884,0.20768657,109690.0,109680.0,0.4679009]
[1761231678089,0.20868657,109690.0,109680.0,0.4679009]
[1761231680890,0.20868657,109690.0,109680.0,0.7207809]
[1761231681095,0.20868657,109690.0,109680.0,0.7707809]
[1761231681693,0.47614584,109690.0,109680.0,0.1344109]
[1761231681897,0.49736612,109690.0,109680.0,0.414411]
[1761231682089,0.33275955,109690.0,109680.0,0.414411]
[1761231682291,0.31153927,109690.0,109680.0,0.415411]
[1761231682691,0.31053927,109690.0,109680.0,0.136411]
[1761231683093,0.63341927,109690.0,109680.0,0.136411]
[1761231683293,0.65463955,109690.0,109680.0,0.136411]
[1761231683495,0.81924612,109690.0,109680.0,0.135411]
[1761231683702,0.81924612,109690.0,109680.0,0.092151]
[1761231683703,0.84481839,109690.0,109680.0,0.092151]
[1761231683901,1.24481839,109690.0,109680.0,0.092151]
[1761231684398,1.24481839,109690.0,109680.0,0.091151]
[1761231684593,1.24481839,109690.0,109680.0,0.112711]
[1761231685595,1.24481839,109690.0,109670.0,0.03136392]
[1761231685796,0.47273414,109680.0,109670.0,0.10015692]
[1761231685997,0.49395442,109680.0,109670.0,0.091153]
[1761231686601,0.49395442,109680.0,109670.0,0.092153]
[1761231686805,0.91852669,109680.0,109670.0,0.001]
[1761231686994,0.1476993,109670.0,109660.0,0.10038631]
[1761231687197,0.63514587,109670.0,109660.0,0.10038631]
[1761231687398,0.65636615,109670.0,109660.0,0.09123152]
[1761231687598,0.68093842,109670.0,109660.0,0.09123152]
[1761231688307,0.68093842,109670.0,109660.0,7.002e-05]
[1761231688709,0.68093842,109670.0,109660.0,0.09123722]
[1761231689001,0.68093842,109670.0,109660.0,0.09923722]
[1761231689400,0.68093842,109670.0,109660.0,0.00807002]
[1761231689600,1.24554499,109670.0,109660.0,0.00807002]
[1761231690309,1.25437364,109670.0,109660.0,0.00807002]
[1761231690508,1.28710353,109670.0,109660.0,0.00807002]
[1761231691913,0.1469756,109650.0,109640.0,0.14523544]
[1761231692105,0.79906874,109650.0,109640.0,0.14523544]
[1761231692611,0.79906874,109650.0,109640.0,0.15793544]
[1761231693003,0.79913876,109650.0,109640.0,0.15793544]
[1761231693202,0.80013876,109650.0,109640.0,0.15793544]
[1761231693903,0.80013876,109650.0,109640.0,0.14523544]
[1761231694314,0.70088316,109650.0,109640.0,0.14523544]
[1761231694609,0.20832657,109680.0,109670.0,0.148959]
[1761231694906,0.20832657,109680.0,109670.0,0.448959]
[1761231695113,0.20832657,109680.0,109670.0,0.488959]
[1761231695410,0.20832657,109680.0,109670.0,0.148959]
[1761231695612,0.20832657,109680.0,109670.0,0.268959]
[1761231695907,0.20832657,109680.0,109670.0,0.198959]
[1761231695908,0.47208384,109680.0,109670.0,0.198959]
[1761231696113,0.48490384,109680.0,109670.0,0.136259]
[1761231697612,0.48490384,109680.0,109670.0,0.148959]
[1761231697913,0.38093314,109680.0,109670.0,0.408959]
[1761231698409,0.70381314,109680.0,109670.0,0.148959]
[1761231698613,0.53920657,109680.0,109670.0,0.198959]
[1761231698811,0.53920657,109680.0,109670.0,0.148959]
[1761231699313,0.70381314,109680.0,109670.0,0.148959]
[1761231699815,0.79496384,109680.0,109670.0,0.198959]
[1761231700015,0.70381314,109680.0,109670.0,0.198959]
[1761231700415,0.70381314,109680.0,109670.0,0.258959]
[1761231700616,0.53920657,109680.0,109670.0,0.258959]
[1761231700915,0.70381314,109680.0,109670.0,0.188959]
[1761231701115,0.70381314,109680.0,109670.0,0.148959]
[1761231701417,0.80778384,109680.0,109670.0,0.136259]
[1761231701711,0.147699,109670.0,109660.0,0.1362614]
[1761231701908,0.31230557,109670.0,109660.0,0.1362614]
[1761231702108,0.31230557,109670.0,109660.0,0.1762614]
[1761231702311,0.31230557,109670.0,109660.0,0.1889614]
[1761231702510,0.31230557,109670.0,109660.0,0.1989614]
[1761231703018,0.31330557,109670.0,109660.0,0.1989614]
[1761231703317,0.31330557,109670.0,109660.0,0.1489614]
[1761231703511,0.31330557,109670.0,109660.0,0.1362614]
[1761231703718,0.31430557,109670.0,109660.0,0.1362614]
[1761231703917,0.31430557,109670.0,109660.0,0.0911614]
[1761231704311,0.1473373,109660.0,109650.0,0.0451]
[1761231704510,0.1473373,109660.0,109640.0,0.37686713]
[1761231704511,0.05654,109640.0,109630.0,0.12347089]
[1761231704718,0.54402657,109640.0,109630.0,0.0911904]
[1761231705107,0.54402657,109640.0,109630.0,0.09998485]
[1761231705306,0.54402657,109640.0,109630.0,0.14508485]
[1761231705710,0.54402657,109640.0,109630.0,0.00879445]
[1761231705920,0.54402657,109640.0,109620.0,0.1535566]
[1761231706119,0.20832657,109630.0,109620.0,0.4435566]
[1761231706708,0.38903977,109630.0,109620.0,0.4435566]
[1761231706910,0.38903977,109630.0,109620.0,0.1535566]
[1761231707112,0.48023207,109630.0,109620.0,0.1535616]
[1761231707319,0.49305207,109630.0,109620.0,0.049661]
[1761231707613,0.49305207,109630.0,109620.0,0.05863888]
[1761231707820,0.49305207,109630.0,109620.0,0.004561]
[1761231708008,0.49305207,109630.0,109620.0,0.009561]
[1761231708518,0.1349289,109610.0,109600.0,0.1490131]
[1761231708725,0.80312867,109610.0,109600.0,0.1490131]
[1761231708915,0.80312867,109610.0,109600.0,0.15813034]
[1761231708916,0.71191977,109610.0,109600.0,0.15813034]
[1761231709420,0.71191977,109610.0,109600.0,0.42813034]
[1761231710724,0.71191977,109610.0,109600.0,0.15813034]
[1761231711222,0.71191977,109610.0,109600.0,0.20813034]
[1761231711525,0.71191977,109610.0,109600.0,0.45913034]
[1761231712222,0.71191977,109610.0,109600.0,0.20913034]
[1761231712422,0.3666,109610.0,109600.0,0.45913034]
[1761231712623,0.71191977,109610.0,109600.0,0.45913034]
[1761231713124,0.3666,109610.0,109600.0,0.45913034]
[1761231713324,0.02268,109610.0,109600.0,0.45913034]
[1761231713518,0.71134977,109620.0,109610.0,0.1486389]
[1761231714421,0.72379977,109620.0,109610.0,0.1486389]
[1761231714625,0.71234977,109620.0,109610.0,0.1486389]
[1761231714826,0.71334977,109620.0,109610.0,0.1486389]
[1761231715321,0.71334977,109620.0,109610.0,0.1986389]
[1761231716017,0.71334977,109620.0,109610.0,0.4286389]
[1761231716018,0.04507,109620.0,109610.0,0.4286389]
[1761231716227,0.002,109620.0,109610.0,0.8286389]
[1761231716427,0.04507,109620.0,109610.0,0.8286389]
[1761231716618,0.04507,109620.0,109610.0,0.4386389]
[1761231716929,0.39038977,109620.0,109610.0,0.1886389]
[1761231717128,0.38938977,109620.0,109610.0,0.4586389]
[1761231717429,0.38938977,109620.0,109610.0,0.4636389]
[1761231717825,0.38838977,109620.0,109610.0,0.4586389]
[1761231718028,0.38838977,109620.0,109610.0,0.1996389]
[1761231718232,0.49204037,109620.0,109610.0,0.1996389]
[1761231718728,0.49304037,109620.0,109610.0,0.1986389]
[1761231718930,0.38938977,109620.0,109610.0,0.4686389]
[1761231719325,0.38938977,109620.0,109610.0,0.1486389]
[1761231719532,0.04407,109620.0,109610.0,0.4686389]
[1761231719921,0.02219,109620.0,109610.0,0.4686389]